[Event "WR Chess Masters Cup 2024"]
[Site "London"]
[Date "2024.10.14"]
[Round "1.2"]
[White "Sadhwani, Raunak"]
[Black "Maghsoodloo, Parham"]
[Result "1-0"]
[ECO "E32"]
[WhiteElo "2659"]
[BlackElo "2719"]
[Annotator "TA"]
[PlyCount "117"]
[EventDate "2024.10.12"]
[EventType "k.o."]
[EventCountry "ENG"]
[SourceTitle "playchess.com"]
[Source "ChessBase"]
[SourceQuality "1"]
[TimeControl "30/3600:20/1800:1800"]

{[%evp 32,117,37,45,31,48,50,14,72,51,106,84,129,117,177,157,169,149,268,152,216,235,225,229,218,221,226,221,240,240,240,235,241,234,240,240,268,191,260,260,261,261,261,239,239,239,239,239,275,275,275,194,194,168,171,133,268,263,263,256,256,232,256,233,232,232,579,405,405,405,909,885,683,683,644,635,6281,1902,1860,1908,1902,1860,1683,1208,29946,12320,6199,5860]} 1. d4 {[%emt 0:00:02]} Nf6 {[%emt 0:00:11]} 2. c4 {[%emt 0:00:04]} e6 {[%emt 0:00:05]} 3. Nc3 {[%emt 0:00:05]} Bb4 {[%emt 0:01:05]} 4. Qc2 {[%emt 0:00:05]} h6 {[%emt 0:00:03]} 5. e4 {[%emt 0:03:40]} c5 {[%emt 0:01:22]} 6. d5 {[%emt 0:03:51] E32: Nimzo-Indian: Classical (4 Qc2): 4...0-0.} exd5 {[%emt 0:11:58]} 7. exd5 {[%emt 0:00:44]} b5 {[%emt 0:03:54]} 8. cxb5 $146 {[%emt 0:03:59]} ({Predecessor:} 8. Be3 O-O 9. Bd3 bxc4 10. Bxc4 Bxc3+ 11. Qxc3 d6 12. Ne2 Nbd7 13. O-O Nb6 14. Qd3 {0-1 Rounaiv,R (2099)-Mihajlov,S (2373) Fagernes op 2024 (3)}) 8... O-O {[%emt 0:01:57]} 9. Bc4 {[%emt 0:00:53]} a6 {[%emt 0:02:35]} 10. Nge2 {[%emt 0:01:42]} axb5 {[%emt 0:00:30]} 11. Bxb5 {[%emt 0:00:07]} Nxd5 {[%emt 0:00:16]} 12. O-O {[%emt 0:00:06]} Bxc3 {[%emt 0:06:10]} 13. Nxc3 {[%emt 0:00:42]} Nb4 {[%emt 0:00:34]} 14. Qd1 {[%emt 0:09:49]} d5 {[%emt 0:02:20]} 15. a3 {[%emt 0:02:22]} d4 {[%emt 0:04:00]} 16. Ne4 {[%emt 0:02:22]} Qd5 {[%emt 0:09:32]} 17. Nxc5 {[%emt 0:05:06]} N4c6 {[%emt 0:00:56]} ({Don't go for} 17... Bb7 $2 18. Qg4 f5 (18... Qxc5 $2 19. Bxh6 Qe5 20. axb4 $18) 19. Qg6 $18) 18. b4 {[%emt 0:01:24]} Nxb4 {[%emt 0:00:09]} 19. Bb2 {[%emt 0:00:33]} (19. Be2 $5 N4c6 20. Nd3 $11) 19... N4c6 {[%emt 0:03:41]} (19... Ra5 $11) 20. Rc1 $16 {[%emt 0:00:32]} Rd8 {[%emt 0:00:04]} (20... Ba6 $1 $14 21. Nxa6 Qxb5) 21. a4 $16 {[%emt 0:00:15]} Ra7 {[%emt 0:01:57]} 22. Qb3 {[%emt 0:02:21]} Qh5 {[%emt 0:01:30]} (22... Qg5 $16 23. Rfe1 Na5) 23. Qg3 $18 {[%emt 0:01:36]} Bf5 {[%emt 0:00:40]} 24. Nb3 {[%emt 0:00:43]} Qg6 {[%emt 0:02:53] [#]} (24... Qg5 $16 25. Rfe1 (25. Bxc6 Nxc6 26. Rxc6 Rb7 $16) 25... d3) 25. Nxd4 {[%emt 0:04:27]} ({Only move:} 25. Bxc6 $1 $18 {[%mdl 512]} Nxc6 26. Rxc6 (26. Qxg6 Bxg6 27. Rxc6 Rb7 $16) 26... Qxg3 (26... Qxc6 $2 {is the wrong capture.} 27. Bxd4 Bg6 28. Bxa7 $18) 27. fxg3 Rxa4 28. Rxf5) 25... Rxd4 {[%emt 0:00:05]} (25... Nxd4 $16 26. Bxd4 Qxg3 27. fxg3 Rxd4) 26. Bxd4 $18 {[%emt 0:00:16]} Qxg3 {[%emt 0:00:03]} 27. fxg3 {[%emt 0:00:06]} Nxd4 {[%emt 0:00:03] [#]} 28. Rcd1 $1 {[%emt 0:00:32]} Nbc6 {[%emt 0:01:07]} 29. Bxc6 {[%emt 0:00:19]} Nxc6 {[%emt 0:00:04]} 30. Rxf5 {[%emt 0:00:00]} Rxa4 {[%emt 0:00:00]} 31. h3 {[%emt 0:01:44]} Nd4 {[%emt 0:04:02]} 32. Rf2 {[%emt 0:00:10]} g5 {[%emt 0:03:32]} 33. Rb2 {[%emt 0:01:49]} Kg7 {[%emt 0:06:59]} 34. Kh2 {[%emt 0:00:49]} Ne6 {[%emt 0:01:40]} (34... h5 $142 35. Rf2 Kg6) 35. Rb7 $18 {[%emt 0:00:12]} Ra8 {[%emt 0:01:21]} 36. Rf1 {[%emt 0:00:30]} Rf8 {[%emt 0:00:05]} 37. Re7 {[%emt 0:00:08]} Nd4 {[%emt 0:01:02]} 38. h4 {[%emt 0:01:06]} Nc6 {[%emt 0:02:53]} 39. Re4 {[%emt 0:00:50]} f6 {[%emt 0:01:00]} 40. Kh3 {[%emt 0:01:17]} Ne5 {[%emt 0:00:24]} 41. g4 {[%emt 0:02:34]} gxh4 {[%emt 0:00:44]} 42. Kxh4 {[%emt 0:00:06]} Rb8 {[%emt 0:00:10]} 43. Ra4 {[%emt 0:01:55]} Ng6+ {[%emt 0:02:04]} (43... Rb2 $16 {might work better.}) 44. Kh5 $18 {[%emt 0:01:48]} Rb7 {[%emt 0:00:19]} 45. Rf5 {[%emt 0:01:51]} Ne7 {[%emt 0:00:52]} 46. Rfa5 {[%emt 0:00:14]} Nc6 {[%emt 0:00:17]} 47. Ra6 {[%emt 0:01:24]} Rb1 {[%emt 0:00:59]} 48. Kh4 {[%emt 0:00:56]} (48. Rxc6 $2 Rh1#) 48... Rh1+ $2 {[%emt 0:01:06]} (48... Ne5 49. Ra8 Rb7) 49. Kg3 $18 {[%emt 0:00:03]} Rc1 {[%emt 0:00:03]} 50. Rb6 {[%emt 0:00:00]} Rc3+ {[%emt 0:00:00]} (50... Ne7 $142 51. Raa6 Rc7 52. Rxf6 Ng8 53. Rg6+ Kh7) 51. Kh4 $18 {[%emt 0:01:57]} Rc1 {[%emt 0:07:53]} 52. Rb7+ {[%emt 0:01:28]} Kg6 {[%emt 0:00:06]} 53. Ra8 {[%emt 0:00:22]} Rh1+ {[%emt 0:00:31]} 54. Kg3 {[%emt 0:00:03]} h5 {[%emt 0:00:04]} 55. Rg8+ {[%emt 0:00:36]} Kh6 {[%emt 0:00:05]} 56. Rh8+ {[%emt 0:01:49]} Kg6 {[%emt 0:00:05]} 57. gxh5+ {[%emt 0:02:12]} Rxh5 {[%emt 0:00:07]} 58. Rxh5 {[%emt 0:00:07]} Kxh5 {[%emt 0:00:04]} 59. Rb6 {[%emt 0:00:05]} 1-0

[Event "WR Chess Masters Cup 2024"]
[Site "London"]
[Date "2024.10.14"]
[Round "1.2"]
[White "Bologan, Victor"]
[Black "Praggnanandhaa R"]
[Result "0-1"]
[ECO "B07"]
[WhiteElo "2608"]
[BlackElo "2746"]
[Annotator "TA"]
[PlyCount "60"]
[EventDate "2024.10.12"]
[EventType "k.o."]
[EventCountry "ENG"]
[SourceTitle "playchess.com"]
[Source "ChessBase"]
[SourceQuality "1"]
[TimeControl "30/3600:20/1800:1800"]

{[%evp 20,60,19,17,13,0,23,22,36,14,62,-36,-12,-43,0,-18,50,-26,29,12,22,-29,-40,-36,-24,-22,-39,-56,-27,-27,-27,-200,-209,-333,-343,-348,-341,-422,-419,-790,-793,-941,-922]} 1. e4 {[%emt 0:00:01]} e5 {[%emt 0:00:20]} 2. Nf3 {[%emt 0:00:03]} d6 {[%emt 0:00:07]} 3. g3 {[%emt 0:02:58]} Nf6 {[%emt 0:05:04]} 4. Nc3 {[%emt 0:00:06]} g6 {[%emt 0:08:25]} 5. d4 {[%emt 0:06:55]} exd4 {[%emt 0:02:54]} 6. Nxd4 {[%emt 0:00:10]} Bg7 {[%emt 0:05:25]} 7. Bg2 {[%emt 0:00:09]} O-O {[%emt 0:00:06]} 8. O-O {[%emt 0:00:09]} Bd7 {[%emt 0:02:06]} 9. h3 {[%emt 0:02:05]} Re8 {[%emt 0:00:59]} 10. g4 {[%emt 0:05:43]} Nc6 {[%emt 0:05:30]} 11. Nde2 {[%emt 0:00:07]} h6 {[%emt 0:00:39]} 12. Ng3 {[%emt 0:08:27]} Rb8 {[%emt 0:00:22]} 13. Be3 {[%emt 0:04:29]} b5 {[%emt 0:05:20][%cal Bb7b5,Bb5b4][%mdl 32] The position is equal.} 14. Qd2 {[%emt 0:02:23]} Kh7 {[%emt 0:02:55]} (14... b4 $11 15. Nce2 Kh7) 15. g5 {[%emt 0:05:53]} (15. b3 $14) 15... b4 $1 $15 {[%emt 0:03:50]} 16. Nce2 {[%emt 0:00:21]} Ng8 {[%emt 0:06:47]} 17. gxh6 {[%emt 0:01:02]} Nxh6 {[%emt 0:00:29]} (17... Bxb2 $11 18. Rad1 Bf6) 18. f4 {[%emt 0:02:16]} ({Better is} 18. Rad1 $14) 18... f5 {[%emt 0:00:52] [#]} ({Black should play} 18... Bxb2 19. Rad1 f5) 19. e5 $1 {[%emt 0:01:57]} dxe5 {[%emt 0:01:09] And now ...e4 would win.} 20. Rad1 {[%emt 0:00:34] [#]} (20. Rfd1 $142 $1 Nd4 21. Nxd4 exd4 22. Bxd4) 20... Nd4 $1 $11 {[%emt 0:00:04]} 21. fxe5 {[%emt 0:07:51]} Nxe2+ {[%emt 0:00:06]} 22. Nxe2 {[%emt 0:02:34]} Bb5 {[%emt 0:02:15] aiming for ...Qxd2.} 23. Qxb4 {[%emt 0:01:08]} Qc8 {[%emt 0:00:07]} (23... Qxd1 {keeps more tension.} 24. Rxd1 Bxe2 25. Qe1 Bxd1 26. Qxd1 Rbd8) 24. Qd2 {[%emt 0:00:34]} Qa6 $36 {[%emt 0:00:36][%mdl 2048] White is under pressure.} 25. Rfe1 {[%emt 0:00:32] This costs White the game.} (25. Nf4 $1 $11) 25... Rbd8 $1 $19 {[%emt 0:00:32]} 26. Qxd8 {[%emt 0:00:19]} (26. Qc3 $142 Rxd1 (26... Bxe2 27. Rxd8 Rxd8 28. Bxh6 $15) (26... Bxe5 27. Bd4 $11) 27. Rxd1 Bxe2 28. Rd7) 26... Rxd8 {[%emt 0:00:05]} 27. Rxd8 {[%emt 0:00:04]} Bxe2 {[%emt 0:00:09]} 28. e6 {[%emt 0:00:50]} Qxe6 {[%emt 0:01:13]} (28... Bxb2 $2 {too greedy.} 29. Rd7+ Bg7 30. Bd4 $18 (30. Rxc7 Qd6 $15) (30. Rxc7 Qd6 $15)) (28... Ng8 29. Bf2 $19) 29. Kf2 {[%emt 0:00:15]} (29. Bf2 $142 f4 (29... Bxb2 30. Rd2 $17) 30. Rd3) 29... Qe7 {[%emt 0:00:51]} 30. Rd2 {[%emt 0:00:00]} Bb5 {[%emt 0:00:00] Weighted Error Value: White=0.86/Black=0.14 (very precise) .  Loses game:     	White=1     	---        Mistake:       	White=5     	Black=3      Inaccurate:     	White=1     	Black=2      OK:         	White=3     	Black=7      Best:        	White=1     	Black=1      Strong:       	---       	Black=2      Brilliant:      	---       	Black=1} 0-1

[Event "WR Chess Masters Cup 2024"]
[Site "London"]
[Date "2024.10.14"]
[Round "1.2"]
[White "Royal, Shreyas"]
[Black "Anand, Viswanathan"]
[Result "0-1"]
[ECO "D17"]
[WhiteElo "2519"]
[BlackElo "2751"]
[Annotator "TA"]
[PlyCount "112"]
[EventDate "2024.10.12"]
[EventType "k.o."]
[EventCountry "ENG"]
[SourceTitle "playchess.com"]
[Source "ChessBase"]
[SourceQuality "1"]
[TimeControl "30/3600:20/1800:1800"]

{[%evp 15,112,17,30,0,18,15,6,6,15,9,5,7,39,28,41,30,27,26,51,0,6,7,38,50,56,12,12,16,14,20,22,9,12,0,0,0,4,-94,-86,-86,-83,-62,-85,-56,-75,-76,-75,-79,-80,-88,-79,-91,-89,-114,-123,-132,-132,-134,-147,-210,-149,-141,-146,-154,-154,-199,-190,-187,-176,-215,-144,-152,-150,-145,-139,-212,-222,-385,-373,-637,-637,-676,-652,-896,-643,-4827,-4597,-1835,-643,-29962,-29964,-29981,-29982,-29984,-29985,-29987,-29988,-29988,-29986]} 1. d4 {[%emt 0:00:03]} d5 {[%emt 0:00:07]} 2. c4 {[%emt 0:00:05]} c6 {[%emt 0:00:03]} 3. Nf3 {[%emt 0:00:23]} Nf6 {[%emt 0:00:08]} 4. Nc3 {[%emt 0:01:00]} dxc4 {[%emt 0:00:13]} 5. a4 {[%emt 0:00:06]} Bf5 {[%emt 0:00:07]} 6. Ne5 {[%emt 0:00:50]} Nbd7 {[%emt 0:00:09]} 7. Nxc4 {[%emt 0:00:09]} Nb6 {[%emt 0:00:05]} 8. Ne5 {[%emt 0:00:14]} a5 {[%emt 0:00:07]} 9. g3 {[%emt 0:02:05]} e6 {[%emt 0:01:17]} 10. Bg2 {[%emt 0:00:06]} Bb4 {[%emt 0:00:08]} 11. O-O {[%emt 0:00:19] The position is equal.} O-O $1 {[%emt 0:00:08]} 12. e3 {[%emt 0:04:12]} h6 $1 {[%emt 0:00:09]} 13. Qe2 {[%emt 0:00:44]} Bh7 {[%emt 0:00:17]} 14. Rd1 {[%emt 0:00:08]} Nfd7 {[%emt 0:01:17]} 15. Nd3 {[%emt 0:02:02]} Qe7 {[%emt 0:04:20]} 16. e4 {[%emt 0:02:30]} e5 {[%emt 0:02:58]} 17. Nxe5 {[%emt 0:06:42]} Nxe5 {[%emt 0:00:51]} 18. dxe5 {[%emt 0:00:04]} Qxe5 {[%emt 0:02:04][%cal Oe5e6]} 19. Be3 {[%emt 0:00:06]} Nc8 {[%emt 0:05:43][%cal Oe5e7,Bb6c8,Bc8e7,Be7d5,Bd5b4][%mdl 32]} 20. Rac1 {[%emt 0:05:32]} Qe6 {[%emt 0:04:54]} 21. f4 {[%emt 0:05:58]} Re8 {[%emt 0:01:28]} (21... Bxc3 $2 22. f5 Qe8 (22... Bxf5 $2 23. exf5 Qe5 24. Rxc3 $18) 23. Rxc3 $18 (23. bxc3 b6 $18)) 22. e5 {[%emt 0:01:07]} Ne7 {[%emt 0:01:44]} 23. Ne4 {[%emt 0:01:13]} Nd5 {[%emt 0:06:56]} 24. Bc5 {[%emt 0:01:11]} Rad8 {[%emt 0:02:15]} 25. Bxb4 {[%emt 0:01:47]} (25. Nd6 $2 Bxc5+ (25... Rxd6 $2 26. Bxd6 Bxd6 27. Qf2 $19) 26. Rxc5 Rxd6 27. Rxa5 Bf5 $19) 25... Nxb4 {[%emt 0:00:58]} 26. Nd6 {[%emt 0:01:44] [#]} (26. Rd2 $11) 26... Rxd6 $1 $17 {[%emt 0:01:28]} 27. Rxd6 {[%emt 0:00:03]} Qxd6 {[%emt 0:00:08]} 28. exd6 {[%emt 0:00:03]} Rxe2 {[%emt 0:00:09]} 29. d7 {[%emt 0:00:01]} Rd2 $1 {[%emt 0:00:09]} (29... Rxb2 30. d8=Q#) 30. Re1 {[%emt 0:00:00] [#]} Be4 $1 {[%emt 0:00:00]} 31. Rxe4 {[%emt 0:07:34]} Rxd7 {[%emt 0:00:25][%mdl 4096] Endgame. KRB-KRN. Black is more active.} ({Weaker is} 31... Rxb2 32. Re8+ (32. d8=B Rb1+ 33. Bf1 Nd5 $18) (32. d8=Q+ Kh7 $18) 32... Kh7 33. Be4+ (33. d8=B Rb1+ 34. Bf1 Ra1 $18) 33... g6 34. d8=Q (34. d8=B Kg7 $18) 34... Re2 35. Rh8+ (35. Qxa5 Re1+ 36. Kg2 Rxe4 $18) 35... Kg7 36. Rg8+ (36. Qf8+ Kf6 37. Rh7 Re1+ 38. Kg2 Re2+ 39. Kh3 Rxh2+ 40. Kxh2 Ke6 41. Qxf7+ Kd6 42. Qe7#) 36... Kh7 37. Bxg6+ (37. Rh8+ Kg7 38. Rg8+ Kh7 39. Bxg6+ fxg6 40. Rh8+ Kg7 41. Qf8#) 37... fxg6 38. Rh8+ Kg7 39. Qf8#) 32. Re8+ {[%emt 0:00:03]} Kh7 {[%emt 0:00:05]} 33. Be4+ {[%emt 0:00:02]} g6 {[%emt 0:00:13]} 34. f5 {[%emt 0:00:02] [#]} Rd1+ $1 {[%emt 0:00:13]} 35. Kf2 {[%emt 0:01:15]} gxf5 {[%emt 0:00:30]} 36. Ke2 {[%emt 0:00:58]} Ra1 {[%emt 0:00:58]} 37. Bxf5+ {[%emt 0:00:12]} Kg7 {[%emt 0:00:08][%cal Oa1a2]} 38. Rb8 {[%emt 0:04:17]} Rxa4 {[%emt 0:01:40]} 39. Rxb7 {[%emt 0:00:24]} Ra2 {[%emt 0:00:12]} 40. Be6 {[%emt 0:06:04]} Rxb2+ {[%emt 0:00:10]} 41. Kf3 {[%emt 0:00:03]} Kf6 {[%emt 0:00:33]} 42. Bc4 {[%emt 0:00:04]} Ke5 {[%emt 0:00:18]} 43. Bxf7 {[%emt 0:07:27]} Rxh2 {[%emt 0:01:24]} 44. Ra7 {[%emt 0:00:18]} Kf6 {[%emt 0:00:21]} 45. Be8 {[%emt 0:04:35]} (45. Bg8 $17 {was called for.}) 45... Ra2 $19 {[%emt 0:01:21]} 46. Kg4 $2 {[%emt 0:01:39]} (46. Rh7 Rc2 47. Rxh6+ Ke7 48. Bh5) 46... a4 {[%emt 0:01:42]} 47. Rh7 $2 {[%emt 0:07:21]} (47. Bxc6 Nxc6 48. Ra6) 47... a3 {[%emt 0:08:58]} 48. Rxh6+ {[%emt 0:00:01]} Ke7 {[%emt 0:01:12]} 49. Bxc6 {[%emt 0:01:49]} Re2 {[%emt 0:00:39] Inhibits Be4. Hoping for ...a2.} 50. Bb5 {[%emt 0:00:00]} Re1 {[%emt 0:00:00]} 51. Rh8 {[%emt 0:07:44]} Kf6 {[%emt 0:00:38]} (51... Kd6 $142 52. Rd8+ Kc7) 52. Bc4 {[%emt 0:02:16]} Re4+ {[%emt 0:00:08] Black mates.} 53. Kh5 {[%emt 0:00:03]} Rxc4 {[%emt 0:00:08]} 54. Ra8 {[%emt 0:00:11]} a2 {[%emt 0:00:07]} 55. g4 {[%emt 0:00:06]} Rc1 {[%emt 0:00:32][%cal Rc1h1]} 56. g5+ {[%emt 0:00:02]} Ke6 {[%emt 0:00:08] Weighted Error Value: White=0.55/Black=0.14 (very precise) .  Mistake:       	White=4     	---        Inaccurate:     	White=2     	Black=3      OK:         	White=13    	Black=14     Best:        	White=9     	Black=5      Strong:       	---       	Black=4      Brilliant:      	---       	Black=2} 0-1

[Event "WR Chess Masters Cup 2024"]
[Site "London"]
[Date "2024.10.14"]
[Round "1.2"]
[White "Vaishali, Rameshbabu"]
[Black "Firouzja, Alireza"]
[Result "1/2-1/2"]
[ECO "C50"]
[WhiteElo "2487"]
[BlackElo "2767"]
[Annotator "TA"]
[PlyCount "90"]
[EventDate "2024.10.12"]
[EventType "k.o."]
[EventCountry "ENG"]
[SourceTitle "playchess.com"]
[Source "ChessBase"]
[SourceQuality "1"]
[TimeControl "30/3600:20/1800:1800"]

{[%evp 9,90,14,14,6,15,0,25,0,-8,-12,33,26,53,41,50,18,72,66,79,78,62,67,94,85,96,90,105,108,119,138,134,133,139,145,168,115,121,100,232,20,176,187,173,150,151,117,189,6,5,0,0,0,0,0,83,83,81,60,81,-13,-12,-7,0,0,0,0,0,0,0,0,0,0,0,0,0,0,0,0,0,0,0,0,0]} 1. e4 {[%emt 0:00:04]} e5 {[%emt 0:00:03]} 2. Nf3 {[%emt 0:00:06]} Nc6 {[%emt 0:00:04]} 3. Bc4 {[%emt 0:00:15]} Nf6 {[%emt 0:00:07]} 4. d3 {[%emt 0:00:06]} Bc5 {[%emt 0:00:05]} 5. Nc3 {[%emt 0:00:22]} a6 {[%emt 0:00:37]} 6. a4 {[%emt 0:00:38]} d6 {[%emt 0:00:44]} 7. Be3 {[%emt 0:00:31]} Be6 {[%emt 0:14:09]} 8. O-O {[%emt 0:11:44] White has an edge.} Bxc4 {[%emt 0:04:12]} 9. dxc4 {[%emt 0:00:06]} Bb4 {[%emt 0:02:28]} 10. Nd5 {[%emt 0:05:45] [#] Threatens to win with c3.} Nd7 {[%emt 0:11:12]} 11. Ne1 {[%emt 0:14:20]} Bxe1 {[%emt 0:09:09]} 12. Qxe1 {[%emt 0:00:06]} Ne7 {[%emt 0:01:10]} (12... b6 $11) 13. a5 {[%emt 0:08:12]} Nxd5 {[%emt 0:02:26]} 14. cxd5 {[%emt 0:00:07]} O-O {[%emt 0:00:11]} 15. Qb4 {[%emt 0:04:52]} Qc8 {[%emt 0:06:10]} 16. Ra3 {[%emt 0:00:33] White is much more active.} f5 {[%emt 0:00:25]} 17. exf5 {[%emt 0:00:30]} Nf6 {[%emt 0:00:12]} 18. c4 {[%emt 0:03:07]} Qxf5 {[%emt 0:02:22]} 19. Qxb7 {[%emt 0:01:50]} Qd7 {[%emt 0:00:35]} 20. Qb4 {[%emt 0:00:55]} Rab8 {[%emt 0:00:16]} 21. Qd2 {[%emt 0:00:06]} Qf5 {[%emt 0:00:18]} 22. h3 {[%emt 0:00:31] Inhibits Ng4.} (22. b4 $18) 22... Ne4 $16 {[%emt 0:00:10]} 23. Qc2 {[%emt 0:00:52]} h5 {[%emt 0:01:47] [#]} (23... Ng3 $16 {was called for.} 24. Rc1 (24. fxg3 $2 Qxc2 25. Rxf8+ Kxf8 $19) 24... Qxc2 25. Rxc2 Nf5) 24. Rb3 $2 {[%emt 0:02:16]} (24. Ba7 $1 $18 {[%cal Ra7b8]} Rb7 25. Rf3) 24... Rxb3 {[%emt 0:00:34]} (24... Ng3 $1 $11 {and Black has nothing to worry.} 25. Qxf5 (25. fxg3 $2 Qxc2 26. Rxb8 Rxb8 $19) 25... Nxf5 26. Rxb8 Rxb8) 25. Qxb3 $18 {[%emt 0:00:01]} g5 {[%emt 0:00:06][%cal Bg7g5,Bg5g4][%mdl 32]} 26. Qd3 {[%emt 0:01:31]} g4 {[%emt 0:00:01]} 27. h4 {[%emt 0:00:06]} Rb8 {[%emt 0:00:07]} (27... Ng3 $16 28. Qxf5 (28. fxg3 $2 Qxd3 29. Re1 Rb8 $19) 28... Nxf5) 28. b3 $2 {[%emt 0:00:03]} (28. Qb1 $18) 28... Ng3 $1 $11 {[%emt 0:00:03]} 29. Rd1 {[%emt 0:00:07]} (29. fxg3 Qxd3 30. Bg5 Rxb3 31. Bc1 Qxg3 32. c5 Qxh4 33. Bh6 g3 (33... dxc5 {is a self mate.} 34. Rf8+ Kh7 35. Bg5 Qxg5 36. Rf1 g3 37. Rf7+ Kg8 38. Rf1 Qh4 39. Rc1 Qh2+ 40. Kf1 Re3 41. Rxc5 Qh1#) 34. Rf8+ Kh7 35. Kf1 Qc4+ (35... Kxh6 {leads to mate.} 36. Rh8+ Kg7 37. Rh7+ Kxh7 38. Ke2 Qe4+ 39. Kd1 Qd3+ 40. Ke1 Rb1#) 36. Ke1 Qe4+ (36... Kxh6 37. Rh8+ Kg7 38. Rh7+ Kxh7 39. Kd1 Qd3+ 40. Ke1 Rb1#) 37. Kd1 Qd3+ (37... Kxh6 38. Rf6+ Kg5 39. Rg6+ Qxg6 40. Ke1 Qd3 41. cxd6 Rb1#) 38. Ke1 Rb1+) (29. Qxf5 {simplifies} Nxf5 30. Rb1 Nxh4 31. b4) 29... Qxd3 {[%emt 0:00:10]} 30. Rxd3 {[%emt 0:00:18][%mdl 4096] Endgame. KRB-KRN} e4 {[%emt 0:00:00]} 31. Rd2 {[%emt 0:00:00] Prevents Ne2+} Nf5 {[%emt 0:00:03]} (31... Rxb3 $11 32. fxg3 Rxe3) 32. Rb2 $16 {[%emt 0:02:38]} Nxh4 {[%emt 0:02:53]} 33. b4 {[%emt 0:02:55] aiming for b5.} Nf5 {[%emt 0:00:34]} 34. b5 {[%emt 0:01:44]} ({White should try} 34. Bg5 $16) 34... Nxe3 $11 {[%emt 0:11:41] The position is equal.} 35. fxe3 {[%emt 0:00:06]} axb5 {[%emt 0:00:03]} 36. cxb5 {[%emt 0:03:30] Kh2 would now be deadly. KR-KR} g3 {[%emt 0:00:56]} 37. b6 {[%emt 0:14:18]} cxb6 {[%emt 0:00:35]} 38. axb6 {[%emt 0:00:02]} Kf7 {[%emt 0:01:16]} 39. b7 {[%emt 0:01:12]} Kf6 {[%emt 0:01:10]} 40. Rb6 {[%emt 0:00:08]} Ke5 {[%emt 0:00:29]} 41. Rb5 {[%emt 0:00:01]} h4 {[%emt 0:00:30]} 42. Kf1 {[%emt 0:00:05]} Kf5 {[%emt 0:00:09]} 43. Rb4 {[%emt 0:00:09]} Ke5 {[%emt 0:00:28]} 44. Rb5 {[%emt 0:00:01]} Kf5 {[%emt 0:00:10]} 45. Rb4 {[%emt 0:00:02]} Ke5 {[%emt 0:09:10] Blacks defense is rewarded with a draw.   Weighted Error Value: White=0.33/Black=0.25 (precise) .  Missed win:     	White=2     	---        Mistake:       	White=2     	Black=5      Inaccurate:     	White=1     	Black=3      OK:         	White=10    	Black=13     Best:        	White=2     	Black=6      Strong:       	---       	Black=1} 1/2-1/2

[Event "WR Chess Masters Cup 2024"]
[Site "London"]
[Date "2024.10.14"]
[Round "1.2"]
[White "Kosteniuk, Alexandra"]
[Black "Abdusattorov, Nodirbek"]
[Result "0-1"]
[ECO "B06"]
[WhiteElo "2480"]
[BlackElo "2783"]
[Annotator "TA"]
[PlyCount "64"]
[EventDate "2024.10.12"]
[EventType "k.o."]
[EventCountry "ENG"]
[SourceTitle "playchess.com"]
[Source "ChessBase"]
[SourceQuality "1"]
[TimeControl "30/3600:20/1800:1800"]

{[%evp 11,64,64,63,44,57,27,36,0,4,10,0,-8,29,32,38,0,18,25,16,0,28,18,48,-70,-70,-71,-74,-69,-68,-72,-66,-89,-116,-190,-158,-257,-217,-261,-242,-362,-309,-437,-471,-633,-636,-649,-628,-663,-668,-654,-643,-656,-644,-716,-701]} 1. e4 {[%emt 0:00:03]} g6 {[%emt 0:00:06]} 2. d4 {[%emt 0:00:05]} Bg7 {[%emt 0:00:05]} 3. Nc3 {[%emt 0:00:14]} d6 {[%emt 0:00:13]} 4. f4 {[%emt 0:00:49]} a6 {[%emt 0:00:06]} 5. Nf3 {[%emt 0:00:37]} b5 {[%emt 0:00:07][%cal Bb7b5,Bb5b4][%mdl 32]} 6. Bd3 {[%emt 0:08:35]} Bb7 {[%emt 0:00:08]} 7. e5 {[%emt 0:02:11]} Nh6 {[%emt 0:03:06]} 8. O-O {[%emt 0:01:42]} O-O {[%emt 0:00:55]} 9. a4 {[%emt 0:02:02] Weiß steht etwas besser.} c5 {[%emt 0:05:25]} 10. dxc5 $1 {[%emt 0:03:10]} b4 {[%emt 0:15:34]} 11. Be4 {[%emt 0:03:18]} Ra7 {[%emt 0:02:00]} 12. Bxb7 {[%emt 0:05:01]} Rxb7 {[%emt 0:00:02]} 13. Qd5 {[%emt 0:05:25]} Rd7 {[%emt 0:01:15]} 14. Ne4 {[%emt 0:04:25] [#] Droht stark e6.} dxe5 {[%emt 0:00:43]} 15. Qc4 {[%emt 0:00:23]} exf4 {[%emt 0:01:05]} 16. Bxf4 {[%emt 0:03:08]} Nf5 {[%emt 0:01:32]} 17. a5 {[%emt 0:03:51]} ({Besser ist} 17. c3 $14) 17... Bxb2 $15 {[%emt 0:04:39]} 18. Rab1 {[%emt 0:03:32]} Bd4+ {[%emt 0:03:19]} 19. Kh1 {[%emt 0:00:23] [#] c6 ist eine echte Drohung.} Nc6 {[%emt 0:00:05]} ({Viel schlechter ist} 19... Qxa5 $6 20. c3 Bxc3 21. g4 $14 (21. Nxc3 bxc3 22. Rxb8 Rxb8 $14)) 20. Qxa6 {[%emt 0:01:00]} Qa8 {[%emt 0:00:19]} 21. Qe2 {[%emt 0:00:54]} Bg7 {[%emt 0:00:35]} (21... Qxa5 22. Rbd1) ({Viel schwächer wäre} 21... Nxa5 22. Rxb4 Nc6 23. Rb6 $11) 22. Nfd2 {[%emt 0:03:32]} (22. a6 $17) 22... Qxa5 {[%emt 0:00:31]} 23. Qf3 {[%emt 0:03:44]} (23. Nb3 $17 Qa2 24. Qb5) 23... Ncd4 {[%emt 0:01:45]} 24. Qh3 {[%emt 0:00:02]} Ne6 {[%emt 0:00:11]} 25. Nc4 {[%emt 0:01:37]} (25. Be3 {war einen Versuch wert.}) 25... Qb5 $19 {[%emt 0:01:08]} 26. Nb6 {[%emt 0:00:02]} (26. Ne5 $142 Rd4 (26... Nxf4 $2 27. Rxf4 Bxe5 28. Rxf5 $19) 27. Qf3) 26... Rd4 {[%emt 0:00:27] Schwarz steht klar auf Gewinn.} 27. Ng5 {[%emt 0:00:08]} Nxg5 {[%emt 0:00:27]} ({Schwächer ist} 27... Nxf4 28. Qxh7#) 28. Bxg5 {[%emt 0:00:02]} Qxc5 {[%emt 0:00:08]} 29. Na4 {[%emt 0:00:02]} Qxc2 {[%emt 0:00:11]} 30. Qb3 {[%emt 0:00:00]} Qxb3 {[%emt 0:00:00]} 31. Rxb3 {[%emt 0:00:20]} Rc8 {[%emt 0:00:49]} 32. g3 {[%emt 0:00:22]} Rc2 {[%emt 0:00:39] Gewichteter Fehlerwert: Weiß=0.51/Schwarz=0.09 (makellos) .  Fehler:       	Weiß=5     	---        Ungenau:       	Weiß=3     	Schwarz=3     OK:         	Weiß=5     	Schwarz=10    Bester:       	Weiß=2     	Schwarz=2     Stark:        	Weiß=1     	---} 0-1